bitfinex/quotes_SOLUSD_20241205
["timestamp","ask_amount","ask_price","bid_price","bid_amount"]
[1733369015750,10.3028,238.18,237.93,23.902374]
[1733369015944,10.3028,238.18,237.95,23.776884]
[1733369016248,10.3028,238.18,237.98,0.12549]
[1733369016547,10.3028,238.18,238.0,0.12549]
[1733369016735,10.3028,238.18,238.02,0.12549]
[1733369016937,10.3028,238.18,238.02,0.96322023]
[1733369017246,10.3028,238.18,238.03,23.776884]
[1733369017445,10.3028,238.18,238.04,0.83770814]
[1733369018336,10.3028,238.18,238.05,0.83771861]
[1733369018520,10.3028,238.18,238.03,23.902374]
[1733369018721,10.3028,238.18,238.05,23.902374]
[1733369018922,3.8524,238.18,238.07,23.902374]
[1733369019174,3.8524,238.18,238.09,23.902374]
[1733369019457,3.8524,238.18,238.11,23.902374]
[1733369019621,3.8524,238.18,238.13,23.902374]
[1733369019829,3.8524,238.18,238.14,0.83737542]
[1733369020052,3.8524,238.18,238.15,23.776884]
[1733369020221,3.8524,238.18,238.16,0.83735367]
[1733369020747,3.8524,238.18,237.93,0.83740864]
[1733369020922,3.8524,238.18,237.96,0.12549]
[1733369021123,3.8524,238.18,237.98,23.902374]
[1733369021321,3.8524,238.18,238.0,23.776884]
[1733369021544,3.8524,238.18,238.02,23.902374]
[1733369021744,3.8524,238.18,238.04,23.902374]
[1733369021955,3.8524,238.18,238.06,23.776884]
[1733369022122,3.8524,238.18,238.08,0.12549]
[1733369022331,3.8524,238.18,238.1,0.12549]
[1733369022960,3.8524,238.18,238.06,23.902374]
[1733369023271,3.8524,238.18,238.08,23.902374]
[1733369023438,3.8524,238.18,238.1,23.776884]
[1733369023643,3.8524,238.18,238.11,0.83750851]
[1733369023850,3.8524,238.18,238.12,23.902374]
[1733369024160,3.8524,238.18,238.13,0.83743433]
[1733369024372,3.8524,238.18,237.96,23.776884]
[1733369024664,3.8524,238.18,237.99,0.12549]
[1733369024879,3.8524,238.18,238.01,23.902374]
[1733369025164,0.3719268,238.19,238.03,23.902374]
[1733369025366,0.3719268,238.19,238.05,23.902374]
[1733369025668,0.0790823,238.19,238.07,23.902374]
[1733369025849,0.0790823,238.19,238.09,23.902374]
[1733369026049,0.0790823,238.19,238.11,23.902374]
[1733369026267,0.0790823,238.19,238.13,23.776884]
[1733369026451,0.0790823,238.19,238.14,0.96283465]
[1733369029957,3.8544,238.38,238.24,0.83702199]
[1733369030777,3.8544,238.38,237.91,26.50561071]
[1733369030778,3.8544,238.38,238.14,0.83714165]
[1733369031066,3.8544,238.38,238.08,6.5546]
[1733369031236,3.8544,238.38,238.1,0.12549]
[1733369031440,3.8544,238.38,238.12,0.12549]
[1733369031741,3.8544,238.38,238.13,0.83714339]
[1733369031944,3.8544,238.38,238.07,23.902374]
[1733369032167,3.8544,238.38,238.09,23.902374]
[1733369032370,3.8544,238.38,238.11,23.902374]
[1733369032683,3.8544,238.38,238.13,23.776884]
[1733369032977,3.8544,238.38,238.15,23.902374]
[1733369033268,3.8544,238.38,238.16,0.83719896]
[1733369033465,3.8544,238.38,238.07,0.12549]
[1733369033640,3.8544,238.38,238.09,0.12549]
[1733369033840,3.8544,238.38,238.11,0.12549]
[1733369034040,3.8544,238.38,238.13,0.12549]
[1733369034272,3.8544,238.38,238.15,0.12549]
[1733369034448,3.8544,238.38,238.17,23.776884]
[1733369034644,3.8544,238.38,238.2,0.12549]
[1733369037986,3.8544,238.38,238.23,23.902374]
[1733369038140,3.8544,238.38,238.25,23.902374]
[1733369038344,3.8544,238.38,238.27,23.776884]
[1733369038643,3.8544,238.38,238.28,0.83690459]
[1733369038848,3.8544,238.38,238.09,8.59056337]
[1733369038849,3.8544,238.38,238.11,23.776884]
[1733369039157,3.8544,238.38,238.14,0.12549]
[1733369039347,3.8544,238.38,238.15,23.776884]
[1733369039680,3.8544,238.38,238.17,23.902374]
[1733369039857,3.8544,238.38,238.19,23.902374]
[1733369040055,3.8544,238.38,238.2,0.83690773]
[1733369040271,3.8544,238.38,238.17,23.902374]
[1733369040471,3.8544,238.38,238.19,23.902374]
[1733369040772,3.8544,238.38,238.21,23.776884]
[1733369040942,3.8544,238.38,238.23,23.776884]
[1733369041142,3.8544,238.38,238.14,209.68603187]
[1733369041143,3.8544,238.38,238.25,23.902374]
[1733369041346,3.8544,238.38,238.27,23.902374]
[1733369041571,3.8544,238.38,238.29,23.776884]
[1733369041774,3.8544,238.38,238.3,0.83681906]
[1733369041961,3.8544,238.38,238.31,23.902374]
[1733369042272,3.8544,238.38,238.32,0.83674772]
[1733369042447,3.8544,238.38,238.16,23.776884]
[1733369042647,3.8544,238.38,238.18,23.776884]
[1733369042848,3.8544,238.38,238.19,0.83696634]
[1733369043067,3.8544,238.38,238.15,0.8370089]
[1733369043467,3.8544,238.38,238.12,0.83712888]
[1733369043665,3.8544,238.38,238.06,0.83727734]
[1733369044156,3.8544,238.38,238.07,0.12549]
[1733369044359,3.8544,238.38,238.09,0.12549]
[1733369044676,3.8544,238.38,238.11,0.12549]
[1733369044878,3.8544,238.38,238.13,0.12549]
[1733369045077,3.8544,238.38,238.15,23.902374]
[1733369045278,3.8544,238.38,238.17,23.902374]
[1733369045451,3.8544,238.38,238.19,23.902374]
[1733369045653,3.8544,238.38,238.21,23.902374]
[1733369045859,3.8544,238.38,238.23,23.776884]
[1733369046059,3.8544,238.38,238.25,0.12549]
[1733369046274,3.8544,238.38,238.26,0.83694093]
[1733369047260,3.8544,238.38,238.23,23.776884]
[1733369047463,3.8544,238.38,238.24,0.83700206]
[1733369047676,3.8544,238.38,238.25,23.776884]
[1733369047859,3.8544,238.38,238.26,0.83701337]
[1733369048063,3.8544,238.38,238.17,0.83701233]
[1733369049754,3.8544,238.38,238.1,0.83727513]
[1733369051260,3.8544,238.38,238.12,0.12549]
[1733369051461,3.8544,238.38,238.14,0.12549]
[1733369051689,3.8544,238.38,238.15,23.776884]
[1733369051982,3.8544,238.38,238.16,0.83724899]
[1733369052188,3.8544,238.38,238.11,0.12549]
[1733369052389,3.8544,238.38,238.12,0.83722153]
[1733369052565,3.8544,238.38,238.06,0.83731073]
[1733369052765,30.415284,238.37,238.06,0.83731073]
[1733369053067,27.729084,238.33,237.97,2.82668102]
[1733369053270,27.729084,238.33,237.97,0.83764457]
[1733369053666,6.3674,238.32,237.97,0.83764457]
[1733369053872,3.8977,238.28,237.98,0.83772831]
[1733369054070,30.144284,238.27,237.95,0.83780674]
[1733369054288,10.2651,238.23,237.9,0.83782607]
[1733369054591,3.8977,238.22,237.78,0.12549]
[1733369054799,3.8977,238.22,237.88,5.9371]
[1733369054966,10.5224,238.33,237.97,5.6723]
[1733369055165,10.5224,238.33,237.99,0.12549]
[1733369055366,10.5224,238.33,238.01,24.050284]
[1733369055563,10.5224,238.33,238.04,0.12549]
[1733369055788,10.5224,238.33,238.06,23.776884]
[1733369055991,10.5224,238.33,238.08,23.902374]
[1733369056194,10.5224,238.33,238.1,23.902374]
[1733369056489,10.5224,238.33,238.09,0.8371666]
[1733369056490,4.0282,238.33,238.12,29.449184]
[1733369056797,4.0282,238.33,238.14,23.902374]
[1733369056984,6.97027,238.41,238.16,23.902374]
[1733369057193,6.97027,238.41,238.18,23.902374]
[1733369057485,6.97027,238.41,238.2,23.902374]
[1733369057689,6.97027,238.41,238.22,23.902374]
[1733369057897,6.97027,238.41,238.24,23.902374]
[1733369058073,6.97027,238.41,238.26,23.902374]
[1733369058278,6.97027,238.41,238.28,23.776884]
[1733369058480,6.97027,238.41,238.26,23.902374]
[1733369058481,6.429,238.41,238.3,23.776884]
[1733369058698,0.3738504,238.41,238.31,0.83689664]
[1733369058871,0.3738504,238.41,238.32,23.776884]
[1733369059073,0.3738504,238.41,238.31,0.83689664]
[1733369059598,0.05024957,238.38,238.31,0.83689664]
[1733369060803,0.05024957,238.38,238.32,23.776884]
[1733369061013,0.05024957,238.38,238.33,0.83674022]
[1733369061173,0.05024957,238.38,238.34,23.776884]
[1733369061370,0.05024957,238.38,238.35,0.83674038]
[1733369061600,0.05024957,238.38,238.32,23.902374]
[1733369061904,0.05024957,238.38,238.32,23.776884]
[1733369062217,0.05024957,238.38,238.33,0.12549]
[1733369062695,0.05024957,238.38,238.35,0.12549]
[1733369062897,0.05024957,238.38,238.37,0.12549]
[1733369063078,0.05024957,238.38,238.37,0.96191637]
[1733369063390,0.3738504,238.41,238.37,24.73880037]
[1733369065397,0.3738504,238.41,238.37,0.83642637]
[1733369065581,0.3738504,238.41,238.33,0.83663047]
[1733369065776,0.3738504,238.41,238.3,0.83662032]
[1733369066728,0.3738504,238.41,238.23,0.83671005]
[1733369067373,0.3738504,238.41,238.15,0.83688485]
[1733369068711,0.3738504,238.41,238.16,24.73662295]
[1733369068909,0.3738504,238.41,238.18,23.902374]
[1733369069115,0.3738504,238.41,238.2,23.902374]
[1733369069281,0.3738504,238.41,238.22,23.902374]
[1733369069488,0.3738504,238.41,238.24,23.902374]
[1733369069808,0.3738504,238.41,238.26,23.902374]
[1733369070106,0.3738504,238.41,238.28,23.902374]
[1733369070316,0.3738504,238.41,238.3,23.902374]
[1733369070498,0.3738504,238.41,238.32,23.902374]
[1733369070680,0.3738504,238.41,238.34,23.902374]
[1733369070881,0.3738504,238.41,238.36,23.902374]
[1733369071085,10.0304,238.54,238.38,23.902374]
[1733369071312,10.0304,238.54,238.4,23.902374]
[1733369071612,10.0304,238.54,238.42,23.902374]
[1733369071810,10.0304,238.54,238.44,23.902374]
[1733369072003,10.0304,238.54,238.46,23.776884]
[1733369072317,10.0304,238.54,238.48,23.776884]
[1733369072609,10.0304,238.54,238.49,0.83629009]
[1733369075109,10.0304,238.54,238.5,23.776884]
[1733369075295,10.0304,238.54,238.51,0.83622256]
[1733369075614,10.0304,238.54,238.32,0.83622008]
[1733369075918,10.0304,238.54,238.34,0.12549]
[1733369076118,10.0304,238.54,238.35,23.776884]
[1733369076289,10.0304,238.54,238.37,0.12549]
[1733369076488,10.0304,238.54,238.39,0.12549]
[1733369076789,10.0304,238.54,238.46,63.0793]
[1733369077012,10.0304,238.54,238.47,0.83634827]
[1733369078406,10.0304,238.54,238.46,59.0277]
[1733369081917,17.9813,238.52,238.46,19.0432]
[1733369082121,7.5,238.52,238.46,19.0432]
[1733369082713,7.5,238.52,238.47,0.83642253]
[1733369083101,7.5,238.52,238.48,23.776884]
[1733369083309,7.5,238.52,238.46,19.0432]
[1733369084808,7.5,238.52,238.47,0.83635406]
[1733369085320,7.5,238.52,238.48,23.776884]
[1733369085485,7.5,238.52,238.49,0.83617742]
[1733369085686,7.5,238.52,238.5,23.776884]
[1733369086019,7.5,238.52,238.48,23.776884]
[1733369086020,7.5,238.52,238.51,0.83623723]
[1733369086207,7.5,238.52,238.5,23.776884]
[1733369086391,7.5,238.52,238.51,24.61308442]
[1733369086593,7.5,238.52,238.46,19.0432]
[1733369086819,7.5,238.52,238.47,0.8363415]
[1733369087299,7.5,238.52,238.48,23.776884]
[1733369087500,7.5,238.52,238.5,23.776884]
[1733369087700,7.5,238.52,238.51,24.61302769]
[1733369090513,5.90592875,238.52,238.51,24.61302769]
[1733369091432,5.90592875,238.52,238.51,22.65152769]
[1733369091733,5.90592875,238.52,238.51,22.77701769]
[1733369092325,5.90592875,238.52,238.51,22.65152769]
[1733369092619,5.90592875,238.52,238.47,0.83607983]
[1733369093805,5.90592875,238.52,238.48,0.12549]
[1733369094005,5.90592875,238.52,238.5,0.12549]
[1733369094206,5.90592875,238.52,238.49,0.8360194]
[1733369094207,5.90592875,238.52,238.51,0.96150695]
[1733369094397,5.90592875,238.52,238.51,24.73839095]
[1733369095718,5.70738895,238.52,238.51,24.73839095]
[1733369096714,5.70738895,238.52,238.51,0.83601695]
[1733369097039,5.70738895,238.52,238.47,0.83615218]
[1733369097334,5.70738895,238.52,238.46,19.0432]
[1733369097710,0.83614369,238.51,238.46,19.0432]
[1733369099205,5.70738895,238.52,238.46,19.0432]
[1733369100039,5.70738895,238.52,238.47,0.83648553]
[1733369100415,5.70738895,238.52,238.46,19.0432]
[1733369101441,0.83614369,238.51,238.46,19.0432]
[1733369103036,6.2338,238.5,238.46,19.0432]
[1733369103337,6.2338,238.5,238.02,20.71913589]
[1733369103338,0.83614369,238.49,238.15,5.707389]
[1733369103530,6.2338,238.48,238.16,4.51253869]
[1733369103834,10.4821,238.5,238.05,3.6754]
[1733369103835,6.2338,238.44,238.05,3.6754]
[1733369104038,30.010684,238.41,238.06,0.83762259]
[1733369104248,0.83614369,238.4,238.05,3.6754]
[1733369104411,23.776884,238.37,237.96,0.83782234]
[1733369104619,6.3143,238.35,237.96,0.83782234]
[1733369104831,23.776884,238.31,237.96,0.83782234]
[1733369105032,23.776884,238.29,237.96,0.83782234]
[1733369105245,23.776884,238.27,237.95,3.8398]
[1733369105552,23.776884,238.24,237.85,3.8398]
[1733369105712,23.776884,238.22,237.86,0.83833713]
[1733369105915,23.776884,238.2,237.86,0.83833713]
[1733369106116,0.83614369,238.19,237.86,0.83833713]
[1733369106412,23.776884,238.23,237.86,0.83833713]
[1733369106612,23.776884,238.21,237.86,0.83833713]
[1733369106834,0.83614369,238.2,237.86,11.34863713]
[1733369107047,6.346,238.23,237.86,11.34863713]
[1733369107361,0.83614369,238.22,237.87,0.12549]
[1733369107514,23.776884,238.21,237.88,0.83798364]
[1733369107716,0.83614369,238.2,237.88,0.83798364]
[1733369108140,23.741584,238.19,237.88,0.83798364]
[1733369108351,0.83614369,238.18,237.86,0.83829831]
[1733369108523,0.83614369,238.18,237.85,3.8398]
[1733369108718,10.4971,238.16,237.8,0.83841939]
[1733369108914,0.83614369,238.15,237.8,0.83841939]
[1733369109137,0.83614369,238.15,237.75,4.0295]
[1733369109138,0.83614369,238.15,237.78,0.83861672]
[1733369109439,6.1892,238.13,237.73,0.4957578]
[1733369109644,6.1892,238.11,237.73,0.4957578]
[1733369109851,0.83614369,238.1,237.73,0.4957578]
[1733369110344,23.776884,238.09,237.73,0.4957578]
[1733369110556,23.776884,238.07,237.73,0.4957578]
[1733369110838,23.776884,238.05,237.73,0.4957578]
[1733369111039,0.83614369,238.04,237.73,0.4957578]
[1733369111244,23.776884,238.03,237.73,0.4957578]
[1733369111443,0.83614369,238.02,237.73,0.4957578]
[1733369111630,55.288084,238.01,237.73,0.4957578]
[1733369111830,0.83614369,238.0,237.73,0.4957578]
[1733369112035,23.776884,237.99,237.73,0.4957578]
[1733369112225,31.5112,238.01,237.73,0.4957578]
[1733369112226,23.776884,237.97,237.73,0.4957578]
[1733369112417,0.83614369,237.96,237.73,0.4957578]
[1733369112620,24.61302769,238.0,237.73,0.4957578]
[1733369113117,6.577,237.99,237.73,0.4957578]
[1733369113318,0.83614369,237.98,237.73,0.4957578]
[1733369113520,31.5165,237.97,237.73,0.4957578]
[1733369113740,6.4921,237.94,237.73,5.78e-05]
[1733369113925,23.776884,237.92,237.5,3.9189]
[1733369114128,126.6636406,237.89,237.5,3.9189]
[1733369114336,23.776884,237.86,237.49,0.4957578]
[1733369114643,23.776884,237.84,237.49,0.4957578]
[1733369114853,23.776884,237.77,237.49,0.4957578]
[1733369115027,23.776884,237.75,237.49,0.4957578]
[1733369115227,0.83614369,237.74,237.49,0.4957578]
[1733369115641,55.325184,237.73,237.49,0.4957578]
[1733369115825,0.83614369,237.72,237.49,0.4957578]
[1733369116217,23.776884,237.71,237.49,0.4957578]
[1733369116446,23.776884,237.69,237.49,0.4957578]
[1733369116790,0.83614369,237.68,237.51,23.776884]
[1733369116944,0.83614369,237.78,237.5,9.9613]
[1733369117444,0.83614369,237.78,237.5,3.7851]
[1733369117751,10.5143,237.77,237.5,3.7851]
[1733369117939,0.83614369,237.76,237.5,3.7851]
[1733369118144,23.776884,237.75,237.49,0.4957578]
[1733369118456,23.776884,237.73,237.49,5.78e-05]
[1733369118623,0.83614369,237.72,237.49,5.78e-05]
[1733369118828,23.776884,237.71,237.49,5.78e-05]
[1733369119150,23.776884,237.69,237.49,5.78e-05]
[1733369119356,0.83614369,237.68,237.49,5.78e-05]
[1733369119646,0.83614369,237.68,237.26,4.1455]
[1733369119647,52.596,237.66,237.26,4.1455]
[1733369119852,24.61302769,237.65,237.26,4.1455]
[1733369120349,0.04121912,237.64,237.26,4.1455]
[1733369120537,23.776884,237.62,237.26,4.1455]
[1733369120860,23.776884,237.6,237.26,4.1455]
[1733369121152,23.776884,237.58,237.26,4.1455]
[1733369121353,23.776884,237.56,237.26,4.1455]
[1733369121653,10.5249,237.53,237.26,4.1455]
[1733369121839,0.83614369,237.52,237.26,4.1455]
[1733369122153,23.776884,237.51,237.26,4.1455]
[1733369122359,0.83614369,237.5,237.26,4.1455]
[1733369122526,11.36094369,237.54,237.26,4.1455]
[1733369122856,0.83614369,237.54,237.26,4.1455]
[1733369123153,0.83614369,237.54,237.27,0.84069039]
[1733369123359,0.83614369,237.54,237.26,4.1455]
[1733369123949,10.5249,237.53,237.26,4.1455]
[1733369124153,0.83614369,237.52,237.26,4.1455]
[1733369124458,23.776884,237.51,237.26,4.1455]
[1733369124753,23.776884,237.49,237.26,4.1455]
[1733369124959,23.776884,237.47,237.26,4.1455]
[1733369125122,0.83614369,237.46,237.26,4.1455]
[1733369125324,23.776884,237.51,237.26,4.1455]
[1733369125647,33.42140748,237.53,237.26,4.1455]
[1733369125648,23.776884,237.49,237.26,4.1455]
[1733369125953,11.36334369,237.48,237.26,4.1455]
[1733369126149,0.83614369,237.48,237.26,4.1455]
[1733369126449,0.83614369,237.52,237.26,4.1455]
[1733369126643,0.83614369,237.52,237.27,0.84070523]
[1733369126832,0.83614369,237.52,237.26,4.1455]
[1733369127246,10.5254,237.52,237.26,4.1455]
[1733369127446,0.83614369,237.51,237.26,4.1455]
[1733369127836,10.56751912,237.5,237.26,4.1455]
[1733369128156,23.776884,237.48,237.26,4.1455]
[1733369128336,0.83614369,237.47,237.26,4.1455]
[1733369128759,0.83614369,237.54,237.26,4.1455]
[1733369128926,0.83614369,237.54,237.26,4.98613928]
[1733369129261,0.83614369,237.54,237.28,23.776884]
[1733369129458,0.83614369,237.54,237.3,23.902374]
[1733369129755,0.83614369,237.54,237.27,6.531]
[1733369130143,11.36104369,237.54,237.27,6.531]
[1733369130337,0.83614369,237.54,237.28,0.840571]
[1733369130653,0.83614369,237.54,237.29,23.776884]
[1733369130859,0.83614369,237.54,237.27,6.531]
[1733369131555,10.5249,237.53,237.26,4.1455]
[1733369131730,10.5263,237.5,237.03,3.8948]
[1733369131934,36.336884,237.46,237.03,3.8948]
[1733369132132,0.83614369,237.45,237.03,3.8948]
[1733369132362,23.776884,237.44,237.03,3.8948]
[1733369132560,23.776884,237.42,237.03,3.8948]
[1733369132853,23.776884,237.4,237.04,0.84136903]
[1733369133060,23.776884,237.38,237.04,0.84136903]
[1733369133238,23.776884,237.38,237.03,3.8948]
[1733369133239,23.776884,237.36,237.03,3.8948]
[1733369133437,0.04121912,237.44,237.03,3.8948]
[1733369133438,0.83614369,237.35,237.03,3.8948]
[1733369133753,10.5298,237.42,237.25,5.78e-05]
[1733369133936,23.776884,237.4,237.25,5.78e-05]
[1733369134140,23.776884,237.38,237.25,5.78e-05]
[1733369134342,23.776884,237.36,237.25,5.78e-05]
[1733369134650,23.776884,237.34,237.25,5.78e-05]
[1733369134962,23.776884,237.32,237.25,5.78e-05]
[1733369135162,23.776884,237.3,237.25,5.78e-05]
[1733369135338,23.776884,237.28,237.25,5.78e-05]
[1733369135543,0.83614369,237.27,237.25,5.78e-05]
[1733369135748,0.04121912,237.38,237.25,5.78e-05]
[1733369135749,34.308884,237.37,237.25,5.78e-05]
[1733369136058,23.776884,237.35,237.25,5.78e-05]
[1733369136260,0.83614369,237.34,237.25,5.78e-05]
[1733369136437,10.5296,237.43,237.25,5.78e-05]
[1733369136643,0.83614369,237.42,237.25,5.78e-05]
[1733369137746,0.83614369,237.42,237.03,3.8948]
[1733369137747,10.5303,237.41,237.03,3.8948]
[1733369137953,0.83614369,237.4,237.03,3.8948]
[1733369138148,0.04121912,237.39,237.03,3.8948]
[1733369138365,0.04121912,237.39,237.04,0.84159593]
[1733369138366,0.83614369,237.38,237.04,0.84159593]
[1733369138552,0.83614369,237.38,237.22,4.1558]
[1733369139151,0.83614369,237.38,237.1,4.1558]
[1733369139373,0.83614369,237.38,237.01,0.4957578]
[1733369139374,0.83614369,237.4,237.22,10.6148]
[1733369139540,4.1455,237.55,237.22,10.6148]
[1733369139541,0.83614369,237.54,237.23,0.84065946]
[1733369140665,10.5249,237.53,237.22,10.6148]
[1733369140875,0.83614369,237.52,237.22,10.6148]
[1733369141787,10.5258,237.51,237.22,10.6148]
[1733369141949,0.83614369,237.5,237.22,3.964]
[1733369142158,23.776884,237.49,237.22,3.964]
[1733369142358,30.177584,237.46,237.22,3.964]
[1733369142560,0.83614369,237.45,237.22,3.964]
[1733369142759,23.776884,237.44,237.22,3.964]
[1733369143076,10.5303,237.41,237.22,3.964]
[1733369143264,23.776884,237.39,237.22,3.964]
[1733369143571,23.776884,237.37,237.22,3.964]
[1733369143772,0.83614369,237.36,237.22,3.964]
[1733369143985,23.776884,237.35,237.22,3.964]
[1733369144142,23.776884,237.33,237.22,3.964]
[1733369144344,23.776884,237.31,237.22,3.964]
[1733369144674,23.776884,237.29,237.22,3.964]
[1733369144851,0.83614369,237.28,237.22,3.964]
[1733369145052,0.83614369,237.28,237.13,6.6508]
[1733369145053,24.61302769,237.4,237.13,6.6508]
[1733369145282,23.776884,237.38,237.12,4.1298]
[1733369145455,0.83614369,237.37,237.12,4.1298]
[1733369145649,23.776884,237.36,237.21,2.467e-05]
[1733369145849,23.776884,237.34,237.12,4.1298]
[1733369146154,23.776884,237.32,237.12,4.1298]
[1733369146476,0.83614369,237.31,237.12,4.1298]
[1733369147277,10.532,237.37,237.12,4.1298]
[1733369147480,0.83614369,237.36,237.12,4.1298]
[1733369147846,0.83614369,237.36,237.13,6.1581]
[1733369148573,0.83614369,237.36,237.14,4.80783688]
[1733369148870,0.83614369,237.41,237.14,3.9665]
[1733369149277,10.5307,237.4,237.14,3.9665]
[1733369149470,0.83614369,237.39,237.14,3.9665]
[1733369151155,10.5316,237.38,237.14,3.9665]
[1733369151482,23.776884,237.36,237.14,3.9665]
[1733369151656,0.83614369,237.35,237.14,3.9665]
[1733369152052,23.776884,237.34,237.14,3.9665]
[1733369152253,23.776884,237.32,237.14,3.9665]
[1733369152456,0.83614369,237.31,237.14,3.9665]
[1733369152654,0.83614369,237.36,237.14,3.9665]
[1733369152869,23.776884,237.35,237.14,3.9665]
[1733369153079,0.83614369,237.34,237.14,3.9665]
[1733369153275,23.776884,237.32,237.14,3.9665]
[1733369153558,0.83614369,237.31,237.14,3.9665]
[1733369153777,23.776884,237.3,237.14,3.9665]
[1733369153992,23.776884,237.28,237.14,3.9665]
[1733369154318,55.387684,237.26,237.14,3.9665]
[1733369154499,23.776884,237.24,237.05,3.6813]
[1733369154665,0.83614369,237.23,237.05,3.6813]
[1733369154982,23.776884,237.22,237.05,3.6813]
[1733369155188,23.776884,237.2,237.05,3.6813]
[1733369155360,0.83614369,237.19,237.05,3.6813]
[1733369155566,0.83614369,237.25,237.05,3.6813]
[1733369155761,23.776884,237.24,237.01,0.4957578]
[1733369155968,23.776884,237.22,237.01,0.4957578]
[1733369156284,23.776884,237.17,237.01,0.4957578]
[1733369156489,23.776884,237.15,237.01,0.4957578]
[1733369156666,0.83614369,237.14,237.01,0.4957578]
[1733369157564,13.39614369,237.17,237.01,0.4957578]
[1733369157890,12.56,237.15,237.01,5.78e-05]
[1733369158093,23.776884,237.13,237.01,5.78e-05]
[1733369158289,34.320484,237.11,237.01,5.78e-05]
[1733369158487,23.776884,237.09,237.01,5.78e-05]
[1733369158694,23.776884,237.07,237.01,5.78e-05]
[1733369158888,0.83614369,237.06,237.01,5.78e-05]
[1733369159085,23.776884,237.05,237.01,5.78e-05]
[1733369159265,0.83614369,237.04,237.01,5.78e-05]
[1733369159583,23.776884,237.09,237.01,5.78e-05]
[1733369159780,23.776884,237.07,237.01,5.78e-05]
[1733369159978,23.776884,237.05,237.01,5.78e-05]
[1733369160182,23.776884,237.03,237.01,5.78e-05]
[1733369160380,0.83614369,237.02,237.01,5.78e-05]
[1733369160583,0.83614369,237.06,237.01,5.78e-05]
[1733369160960,0.83614369,237.12,237.01,5.78e-05]
[1733369161673,0.83614369,237.17,237.01,5.78e-05]
[1733369162363,31.6242,237.16,237.01,5.78e-05]
[1733369162563,0.83614369,237.15,237.01,5.78e-05]
[1733369162769,0.87736281,237.15,237.01,5.78e-05]
[1733369162970,23.776884,237.14,237.01,5.78e-05]
[1733369163184,0.83614369,237.13,237.01,5.78e-05]
[1733369163389,23.776884,237.12,237.01,5.78e-05]
[1733369163594,0.83614369,237.11,237.01,5.78e-05]
[1733369163781,0.83614369,237.15,237.01,5.78e-05]
[1733369164397,10.5422,237.14,237.01,5.78e-05]
[1733369164586,0.83614369,237.13,237.01,5.78e-05]
[1733369165296,23.81810312,237.12,237.01,5.78e-05]
[1733369165501,23.776884,237.1,237.01,5.78e-05]
[1733369165668,0.83614369,237.09,237.01,5.78e-05]
[1733369166484,31.6348,237.08,237.01,5.78e-05]
[1733369166816,0.83614369,237.07,237.01,5.78e-05]
[1733369167092,23.81810312,237.06,236.87,6.6543]
[1733369167296,0.83614369,237.05,236.87,6.6543]
[1733369167504,23.776884,237.04,236.87,6.6543]
[1733369167677,0.83614369,237.03,236.87,6.6543]
[1733369167994,23.776884,237.02,236.87,6.6543]
[1733369168183,23.776884,237.0,236.87,6.6543]
[1733369168391,0.83614369,236.99,236.87,6.6543]
[1733369168568,0.83614369,237.02,236.87,6.6543]
[1733369168765,6.6543,237.03,236.87,6.6543]
[1733369168970,6.2862,237.29,236.88,0.96759805]
[1733369169170,10.57771912,237.27,236.96,0.12549]
[1733369169394,31.65071912,237.27,236.95,6.5573]
[1733369170092,31.65071912,237.27,236.96,3.6416]
[1733369170687,10.5365,237.27,236.99,6.4704]
[1733369171778,0.04121912,237.26,236.99,6.4704]
[1733369172195,31.6147,237.23,236.99,6.4704]
[1733369172398,23.776884,237.22,236.99,6.4704]
[1733369172696,23.81810312,237.22,236.99,6.4704]
[1733369172877,13.76578774,237.21,236.99,6.4704]
[1733369173097,23.776884,237.21,236.99,6.4704]
[1733369173291,0.04121912,237.2,236.99,6.4704]
[1733369173901,52.6912,237.23,236.99,6.4704]
[1733369174184,10.5382,237.23,236.99,6.4704]
[1733369174503,0.04121912,237.27,236.99,6.4704]
[1733369175190,21.0701962,237.27,236.99,6.4704]
[1733369175386,12.56,237.24,236.99,6.4704]
[1733369175619,23.776884,237.21,236.99,6.4704]